lending/lending_fUSD_20240710
["ID","MTS","AMOUNT","RATE_DAILY","PERIOD"]
[331650928,1720605056838,-1016.5,0.00013808,2]
[331650929,1720605056848,-500.0,0.00013808,2]
[331650930,1720605056858,-629.98,0.00013808,2]
[331650931,1720605056867,-500.0,0.00013808,2]
[331650932,1720605056876,-1127.67,0.00013808,2]
[331650933,1720605056885,-500.0,0.00013808,2]
[331650934,1720605056895,-500.0,0.00013808,2]
[331650935,1720605056904,-688.55,0.00013808,2]
[331650936,1720605056913,-500.0,0.00013808,2]
[331650937,1720605056925,-259.30141614,0.00013808,2]
[331650938,1720605056937,-889.17,0.00013808,2]
[331650939,1720605056949,-500.0,0.00013808,2]
[331650940,1720605056963,-853.5,0.00013808,2]
[331650941,1720605056975,-1661.49,0.00013808,2]
[331650942,1720605056986,-500.0,0.00013808,2]
[331650943,1720605056997,-621.87,0.00013808,2]
[331650944,1720605057007,-969.44,0.00013808,2]
[331650945,1720605057019,-500.0,0.00013808,2]
[331650946,1720605057031,-500.0,0.00013808,2]
[331650947,1720605057042,-500.0,0.00013808,2]
[331650948,1720605057054,-706.97,0.00013808,2]
[331650949,1720605057065,-636.3,0.00013808,2]
[331650950,1720605057076,-500.0,0.00013808,2]
[331650951,1720605057088,-818.65,0.00013808,2]
[331650952,1720605057099,-500.0,0.00013808,2]
[331650953,1720605057111,-500.0,0.00013808,2]
[331650954,1720605057122,-500.0,0.00013808,2]
[331650955,1720605057135,-767.29,0.00013808,2]
[331650956,1720605057146,-562.0,0.00013808,2]
[331650957,1720605057158,-636.74,0.00013808,2]
[331650958,1720605057170,-500.0,0.00013808,2]
[331650959,1720605057182,-850.97,0.00013808,2]
[331650960,1720605057193,-1162.05,0.00013808,2]
[331650961,1720605057204,-500.0,0.00013808,2]
[331650962,1720605057215,-591.32,0.00013808,2]
[331650963,1720605057226,-494.5,0.00013808,2]
[331650964,1720605057238,-500.0,0.00013808,2]
[331650965,1720605057249,-500.0,0.00013808,2]
[331650966,1720605057260,-500.0,0.00013808,2]
[331650967,1720605057272,-500.0,0.00013808,2]
[331650968,1720605057284,-368.60705609,0.00013808,2]
[331650969,1720605057295,-500.0,0.00013808,2]
[331650970,1720605057307,-902.1,0.00013808,2]
[331650971,1720605057317,-538.09,0.00013808,2]
[331650972,1720605057327,-868.99,0.00013808,2]
[331650973,1720605057337,-500.0,0.00013808,2]
[331650974,1720605057347,-766.75,0.00013808,2]
[331650975,1720605057358,-576.02,0.00013808,2]
[331650976,1720605057368,-500.0,0.00013808,2]
[331650977,1720605057379,-1193.48,0.00013808,2]
[331650978,1720605057391,-507.56,0.00013808,2]
[331650979,1720605057402,-500.0,0.00013808,2]
[331650980,1720605057413,-500.0,0.00013808,2]
[331650981,1720605057424,-842.22,0.00013808,2]
[331650982,1720605057435,-500.0,0.00013808,2]
[331650983,1720605057446,-732.11,0.00013808,2]
[331650984,1720605057458,-151.0,0.00013808,2]
[331650985,1720605057470,-500.0,0.00013808,2]
[331650986,1720605057482,-329.41554011,0.00013808,2]
[331650987,1720605057495,-1021.16,0.00013808,2]
[331650988,1720605057507,-2170.18,0.00013808,2]
[331650989,1720605057517,-1234.09,0.00013808,2]
[331650990,1720605057527,-642.04,0.00013808,2]
[331650991,1720605057537,-676.92,0.00013808,2]
[331650992,1720605057547,-500.0,0.00013808,2]
[331650993,1720605057558,-500.0,0.00013808,2]
[331650994,1720605057568,-500.0,0.00013808,2]
[331650995,1720605057580,-752.3,0.00013808,2]
[331650996,1720605057591,-1209.88,0.00013808,2]
[331650997,1720605057602,-1202.0,0.00013808,2]
[331650998,1720605057613,-500.0,0.00013808,2]
[331650999,1720605057625,-500.0,0.00013808,2]
[331651000,1720605057634,-1565.99,0.00013808,2]
[331651001,1720605057644,-500.0,0.00013808,2]
[331651002,1720605057654,-500.0,0.00013808,2]
[331651003,1720605057665,-500.0,0.00013808,2]
[331651004,1720605057675,-500.0,0.00013808,2]
[331651005,1720605057688,-500.0,0.00013808,2]
[331651006,1720605057700,-500.0,0.00013808,2]
[331651007,1720605057710,-1474.53,0.00013808,2]
[331651008,1720605057720,-500.0,0.00013808,2]
[331651009,1720605057731,-913.86,0.00013808,2]
[331651010,1720605057741,-663.74,0.00013808,2]
[331651011,1720605057752,-500.0,0.00013808,2]
[331651012,1720605057762,-745.7,0.00013808,2]
[331651013,1720605057774,-500.0,0.00013808,2]
[331651014,1720605057785,-500.0,0.00013808,2]
[331651015,1720605057796,-500.0,0.00013808,2]
[331651016,1720605057806,-867.31,0.00013808,2]
[331651017,1720605057817,-1340.01,0.00013808,2]
[331651018,1720605057827,-782.61,0.00013808,2]
[331651019,1720605057838,-1436.94,0.00013808,2]
[331651020,1720605057848,-804.29,0.00013808,2]
[331651021,1720605057858,-500.0,0.00013808,2]
[331651022,1720605057869,-870.61,0.00013808,2]
[331651023,1720605057880,-500.0,0.00013808,2]
[331651024,1720605057890,-1436.15,0.00013808,2]
[331651025,1720605057901,-500.0,0.00013808,2]
[331651026,1720605057911,-500.0,0.00013808,2]
[331651027,1720605057922,-649.98,0.00013808,2]
[331651028,1720605057934,-500.0,0.00013808,2]
[331651029,1720605057944,-500.0,0.00013808,2]
[331651030,1720605057954,-500.0,0.00013808,2]
[331651031,1720605057965,-500.0,0.00013808,2]
[331651032,1720605057975,-1443.66,0.00013808,2]
[331651033,1720605057986,-1092.49,0.00013808,2]
[331651034,1720605057997,-1671.66,0.00013808,2]
[331651035,1720605058007,-500.0,0.00013808,2]
[331651036,1720605058017,-1450.59,0.00013808,2]
[331651037,1720605058028,-500.0,0.00013808,2]
[331651038,1720605058039,-500.0,0.00013808,2]
[331651039,1720605058049,-813.67,0.00013808,2]
[331651040,1720605058060,-500.0,0.00013808,2]
[331651041,1720605058071,-606.93,0.00013808,2]
[331651042,1720605058081,-500.0,0.00013808,2]
[331651043,1720605058092,-500.0,0.00013808,2]
[331651044,1720605058103,-500.0,0.00013808,2]
[331651045,1720605058113,-1360.4,0.00013808,2]
[331651046,1720605058123,-871.89,0.00013808,2]
[331651047,1720605058134,-915.68,0.00013808,2]
[331651048,1720605058144,-500.0,0.00013808,2]
[331651049,1720605058156,-500.0,0.00013808,2]
[331651050,1720605058166,-500.0,0.00013808,2]
[331651051,1720605058176,-500.0,0.00013808,2]
[331651052,1720605058187,-500.0,0.00013808,2]
[331651053,1720605058197,-500.0,0.00013808,2]
[331651054,1720605058207,-500.0,0.00013808,2]
[331651055,1720605058218,-500.0,0.00013808,2]
[331651056,1720605058228,-500.0,0.00013808,2]
[331651057,1720605058238,-976.42,0.00013808,2]
[331651058,1720605058250,-500.0,0.00013808,2]
[331651059,1720605058260,-636.58,0.00013808,2]
[331651060,1720605058270,-1002.05,0.00013808,2]
[331651061,1720605058280,-500.0,0.00013808,2]
[331651062,1720605058290,-500.0,0.00013808,2]
[331651063,1720605058301,-500.0,0.00013808,2]
[331651064,1720605058311,-991.76,0.00013808,2]
[331651065,1720605058321,-500.0,0.00013808,2]
[331651066,1720605058331,-500.0,0.00013808,2]
[331651067,1720605058342,-553.22,0.00013808,2]
[331651068,1720605058352,-562.34,0.00013808,2]
[331651069,1720605058362,-500.0,0.00013808,2]
[331651070,1720605058372,-543.73,0.00013808,2]
[331651071,1720605058383,-500.0,0.00013808,2]
[331651072,1720605058393,-500.0,0.00013808,2]
[331651073,1720605058403,-500.0,0.00013808,2]
[331651074,1720605058414,-616.17,0.00013808,2]
[331651075,1720605058424,-500.0,0.00013808,2]
[331651076,1720605058435,-500.0,0.00013808,2]
[331651077,1720605058445,-500.0,0.00013808,2]
[331651078,1720605058455,-1586.1,0.00013808,2]
[331651079,1720605058466,-1006.17,0.00013808,2]
[331651080,1720605058476,-500.0,0.00013808,2]
[331651081,1720605058488,-500.0,0.00013808,2]
[331651082,1720605058500,-500.0,0.00013808,2]
[331651083,1720605058511,-513.37,0.00013808,2]
[331651084,1720605058521,-701.68,0.00013808,2]
[331651085,1720605058531,-500.0,0.00013808,2]
[331651086,1720605058543,-554.38,0.00013808,2]
[331651087,1720605058554,-1108.96,0.00013808,2]
[331651088,1720605058565,-500.0,0.00013808,2]
[331651089,1720605058576,-500.0,0.00013808,2]
[331651090,1720605058586,-500.0,0.00013808,2]
[331651091,1720605058596,-1197.21,0.00013808,2]
[331651092,1720605058607,-521.59,0.00013808,2]
[331651093,1720605058618,-500.0,0.00013808,2]
[331651094,1720605058628,-500.0,0.00013808,2]
[331651095,1720605058638,-500.0,0.00013808,2]
[331651096,1720605058648,-500.0,0.00013808,2]
[331651097,1720605058659,-999.22,0.00013808,2]
[331651098,1720605058669,-500.0,0.00013808,2]
[331651099,1720605058680,-500.0,0.00013808,2]
[331651100,1720605058690,-500.0,0.00013808,2]
[331651101,1720605058700,-536.89,0.00013808,2]
[331651102,1720605058710,-1000.0,0.00013808,2]
[331651103,1720605058721,-500.0,0.00013808,2]
[331651104,1720605058732,-500.0,0.00013808,2]
[331651105,1720605058742,-500.0,0.00013808,2]
[331651106,1720605058752,-500.0,0.00013808,2]
[331651107,1720605058763,-230.725392,0.00013808,2]
[331651108,1720605058773,-500.0,0.00013808,2]
[331651109,1720605058784,-500.0,0.00013808,2]
[331651110,1720605058794,-500.0,0.00013808,2]
[331651111,1720605058804,-792.38,0.00013808,2]
[331651112,1720605058815,-565.73,0.00013808,2]
[331651113,1720605058825,-500.0,0.00013808,2]
[331651114,1720605058836,-500.0,0.00013808,2]
[331651115,1720605058846,-528.91,0.00013808,2]
[331651116,1720605058856,-500.0,0.00013808,2]
[331651117,1720605058867,-500.0,0.00013808,2]
[331651118,1720605058877,-500.0,0.00013808,2]
[331651119,1720605058888,-500.0,0.00013808,2]
[331651120,1720605058898,-812.24,0.00013808,2]
[331651121,1720605058909,-500.0,0.00013808,2]
[331651122,1720605059826,-607.47,0.00013808,2]
[331651123,1720605059843,-1231.83,0.00013808,2]
[331651124,1720605059871,-500.0,0.00013808,2]
[331651125,1720605059893,-500.0,0.00013808,2]
[331651126,1720605059903,-1674.57,0.00013808,2]
[331651127,1720605059912,-500.0,0.00013808,2]
[331651128,1720605059922,-1279.24,0.00013808,2]
[331651129,1720605059932,-651.76,0.00013808,2]
[331651130,1720605059942,-604.38,0.00013808,2]
[331651131,1720605059951,-1566.61,0.00013808,2]
[331651132,1720605059961,-500.0,0.00013808,2]
[331651133,1720605059971,-571.14,0.00013808,2]
[331651134,1720605059980,-754.22,0.00013808,2]
[331651135,1720605059991,-1153.57,0.00013808,2]
[331651136,1720605060005,-627.7996731,0.00013808,2]
[331651137,1720605060014,-764.39,0.00013808,2]
[331651138,1720605060024,-500.0,0.00013808,2]
[331651139,1720605060036,-500.0,0.00013808,2]
[331651140,1720605060045,-500.0,0.00013808,2]
[331651141,1720605060055,-500.0,0.00013808,2]
[331651142,1720605060069,-500.0,0.00013808,2]
[331651143,1720605060079,-500.0,0.00013808,2]
[331651144,1720605060090,-1210.27,0.00013808,2]
[331651145,1720605060100,-590.75,0.00013808,2]
[331651146,1720605060110,-500.0,0.00013808,2]
[331651147,1720605060120,-1511.87,0.00013808,2]
[331651148,1720605060130,-500.0,0.00013808,2]
[331651149,1720605060140,-500.0,0.00013808,2]
[331651150,1720605060150,-971.13,0.00013808,2]
[331651151,1720605060160,-500.0,0.00013808,2]
[331651152,1720605060170,-1120.01,0.00013808,2]
[331651153,1720605060180,-787.47,0.00013808,2]
[331651154,1720605060190,-500.0,0.00013808,2]
[331651155,1720605060200,-294.341954,0.00013808,2]
[331651156,1720605060210,-500.0,0.00013808,2]
[331651157,1720605060219,-500.0,0.00013808,2]
[331651158,1720605060230,-562.69605114,0.00013808,2]
[331651159,1720605060239,-528.69,0.00013808,2]
[331651160,1720605060251,-500.0,0.00013808,2]
[331651161,1720605060262,-789.45,0.00013808,2]
[331651162,1720605060272,-1000.46,0.00013808,2]
[331651163,1720605060282,-500.0,0.00013808,2]
[331651164,1720605060292,-500.0,0.00013808,2]
[331651165,1720605060302,-500.0,0.00013808,2]
[331651166,1720605060312,-500.0,0.00013808,2]
[331651167,1720605060322,-1569.65,0.00013808,2]
[331651168,1720605060333,-500.0,0.00013808,2]
[331651169,1720605060343,-616.93,0.00013808,2]
[331651170,1720605060352,-542.3,0.00013808,2]
[331651171,1720605060361,-500.0,0.00013808,2]
[331651172,1720605060371,-948.91,0.00013808,2]
[331651173,1720605060381,-500.0,0.00013808,2]
[331651174,1720605060391,-643.36,0.00013808,2]
[331651175,1720605060400,-643.43,0.00013808,2]
[331651176,1720605060410,-500.0,0.00013808,2]
[331651177,1720605060420,-500.0,0.00013808,2]
[331651178,1720605060430,-531.02,0.00013808,2]
[331651179,1720605060440,-952.15,0.00013808,2]
[331651180,1720605060451,-1377.05,0.00013808,2]
[331651181,1720605060461,-500.0,0.00013808,2]
[331651182,1720605060470,-500.0,0.00013808,2]
[331651183,1720605060480,-503.38,0.00013808,2]
[331651184,1720605060490,-1702.42,0.00013808,2]
[331651185,1720605060507,-1506.19,0.00013808,2]
[331651186,1720605060517,-500.0,0.00013808,2]
[331651187,1720605060530,-656.03,0.00013808,2]
[331651188,1720605060542,-500.0,0.00013808,2]
[331651189,1720605060553,-500.0,0.00013808,2]
[331651190,1720605060563,-1039.74,0.00013808,2]
[331651191,1720605060573,-500.0,0.00013808,2]
[331651192,1720605060584,-717.52,0.00013808,2]
[331651193,1720605060593,-859.44,0.00013808,2]
[331651194,1720605060603,-500.0,0.00013808,2]
[331651195,1720605060613,-858.09,0.00013808,2]
[331651196,1720605060623,-747.51,0.00013808,2]
[331651197,1720605060633,-500.0,0.00013808,2]
[331651198,1720605060642,-500.0,0.00013808,2]
[331651199,1720605060652,-1077.14,0.00013808,2]
[331651200,1720605060662,-500.0,0.00013808,2]
[331651201,1720605060672,-1001.11,0.00013808,2]
[331651202,1720605060682,-877.95,0.00013808,2]
[331651203,1720605060692,-501.85,0.00013808,2]
[331651204,1720605060701,-500.0,0.00013808,2]
[331651205,1720605060711,-500.0,0.00013808,2]
[331651206,1720605060720,-500.0,0.00013808,2]
[331651207,1720605060730,-580.78,0.00013808,2]
[331651208,1720605060740,-805.57,0.00013808,2]
[331651209,1720605060750,-1140.04,0.00013808,2]
[331651210,1720605060760,-995.6,0.00013808,2]
[331651211,1720605060770,-500.0,0.00013808,2]
[331651212,1720605060780,-500.0,0.00013808,2]
[331651213,1720605060790,-568.7,0.00013808,2]
[331651214,1720605060800,-787.74,0.00013808,2]
[331651215,1720605060811,-500.0,0.00013808,2]
[331651216,1720605060820,-500.0,0.00013808,2]
[331651217,1720605060830,-500.0,0.00013808,2]
[331651218,1720605060839,-500.0,0.00013808,2]
[331651219,1720605060849,-500.0,0.00013808,2]
[331651220,1720605060859,-500.0,0.00013808,2]
[331651221,1720605060868,-500.0,0.00013808,2]
[331651222,1720605060878,-1136.87,0.00013808,2]
[331651223,1720605060888,-879.79,0.00013808,2]
[331651224,1720605060898,-500.0,0.00013808,2]
[331651225,1720605060908,-500.0,0.00013808,2]
[331651226,1720605060917,-500.0,0.00013808,2]
[331651227,1720605060927,-500.0,0.00013808,2]
[331651228,1720605060937,-500.0,0.00013808,2]
[331651229,1720605060946,-710.38,0.00013808,2]
[331651230,1720605060955,-500.0,0.00013808,2]
[331651231,1720605060965,-500.0,0.00013808,2]
[331651232,1720605060974,-500.0,0.00013808,2]
[331651233,1720605060984,-500.0,0.00013808,2]
[331651234,1720605060994,-535.05,0.00013808,2]
[331651235,1720605061004,-500.0,0.00013808,2]
[331651236,1720605061013,-500.0,0.00013808,2]
[331651237,1720605061023,-1306.84,0.00013808,2]
[331651238,1720605061033,-929.55,0.00013808,2]
[331651239,1720605061043,-500.0,0.00013808,2]
[331651240,1720605061052,-500.0,0.00013808,2]
[331651241,1720605061063,-500.0,0.00013808,2]
[331651242,1720605061073,-500.0,0.00013808,2]
[331651243,1720605061082,-1630.76,0.00013808,2]
[331651244,1720605061092,-500.0,0.00013808,2]
[331651245,1720605061102,-500.0,0.00013808,2]
[331651246,1720605061112,-1131.4,0.00013808,2]
[331651247,1720605061121,-1328.38,0.00013808,2]
[331651248,1720605061131,-597.83,0.00013808,2]
[331651249,1720605061141,-500.0,0.00013808,2]
[331651250,1720605061152,-500.0,0.00013808,2]
[331651251,1720605061161,-767.37,0.00013808,2]
[331651252,1720605061171,-966.15,0.00013808,2]
[331651253,1720605061180,-500.0,0.00013808,2]
[331651254,1720605061190,-646.86,0.00013808,2]
[331651255,1720605061200,-874.81,0.00013808,2]
[331651256,1720605061209,-500.0,0.00013808,2]
[331651257,1720605061220,-1232.56,0.00013808,2]
[331651258,1720605061229,-1021.55,0.00013808,2]
[331651259,1720605061239,-500.0,0.00013808,2]
[331651260,1720605061250,-849.62,0.00013808,2]
[331651261,1720605061260,-500.0,0.00013808,2]
[331651262,1720605061270,-980.47,0.00013808,2]
[331651263,1720605061280,-249.69884729,0.00013808,2]
[331651264,1720605061289,-500.0,0.00013808,2]
[331651265,1720605061299,-500.0,0.00013808,2]
[331651266,1720605061308,-500.0,0.00013808,2]
[331651267,1720605061318,-907.24,0.00013808,2]
[331651268,1720605061327,-680.06,0.00013808,2]
[331651269,1720605061337,-1023.58,0.00013808,2]
[331651270,1720605061350,-979.79,0.00013808,2]
[331651271,1720605061360,-500.0,0.00013808,2]
[331651272,1720605061370,-1215.54,0.00013808,2]
[331651273,1720605061380,-1158.89,0.00013808,2]
[331651274,1720605061389,-665.03,0.00013808,2]
[331651275,1720605061399,-500.0,0.00013808,2]
[331651276,1720605061409,-500.0,0.00013808,2]
[331651277,1720605061419,-637.3,0.00013808,2]
[331651278,1720605061429,-1369.86,0.00013808,2]
[331651279,1720605061438,-500.0,0.00013808,2]
[331651280,1720605061448,-500.0,0.00013808,2]
[331651281,1720605061458,-500.0,0.00013808,2]
[331651282,1720605061467,-531.3,0.00013808,2]
[331651283,1720605061477,-555.33,0.00013808,2]
[331651284,1720605061487,-814.19,0.00013808,2]
[331651285,1720605061499,-528.35,0.00013808,2]
[331651286,1720605061509,-500.0,0.00013808,2]
[331651287,1720605061518,-5795.8,0.00013808,2]
[331651288,1720605061528,-500.0,0.00013808,2]
[331651289,1720605061540,-1519.46,0.00013808,2]
[331651290,1720605061552,-554.32,0.00013808,2]
[331651291,1720605061562,-500.0,0.00013808,2]
[331651292,1720605061572,-500.0,0.00013808,2]
[331651293,1720605061582,-500.0,0.00013808,2]
[331651294,1720605061592,-500.0,0.00013808,2]
[331651295,1720605061603,-500.0,0.00013808,2]
[331651296,1720605061612,-2059.7,0.00013808,2]
[331651297,1720605061624,-772.77,0.00013808,2]
[331651298,1720605061634,-500.0,0.00013808,2]
[331651299,1720605061645,-500.0,0.00013808,2]
[331651300,1720605061655,-1145.38,0.00013808,2]
[331651301,1720605061665,-500.0,0.00013808,2]
[331651302,1720605061674,-500.0,0.00013808,2]
[331651303,1720605061684,-500.0,0.00013808,2]
[331651304,1720605061694,-1181.31,0.00013808,2]
[331651305,1720605061704,-1444.38,0.00013808,2]
[331651306,1720605061713,-933.37,0.00013808,2]
[331651307,1720605061723,-500.0,0.00013808,2]
[331651308,1720605061732,-500.0,0.00013808,2]
[331651309,1720605061741,-500.0,0.00013808,2]
[331651310,1720605061751,-1114.96,0.00013808,2]
[331651311,1720605061761,-500.0,0.00013808,2]
[331651312,1720605061770,-1590.89,0.00013808,2]
[331651313,1720605061780,-500.0,0.00013808,2]
[331651314,1720605061790,-500.0,0.00013808,2]
[331651315,1720605061800,-500.0,0.00013808,2]
[331651316,1720605061810,-652.36,0.00013808,2]
[331651317,1720605061820,-517.97,0.00013808,2]
[331651318,1720605061831,-612.31,0.00013808,2]
[331651319,1720605061841,-500.0,0.00013808,2]
[331651320,1720605061851,-511.26,0.00013808,2]
[331651321,1720605061861,-713.22,0.00013808,2]
[331651322,1720605061871,-496.14849994,0.00013808,2]
[331651323,1720605061882,-151.0,0.00013808,2]
[331651324,1720605061891,-751.3,0.00013808,2]
[331651325,1720605061901,-564.35,0.00013808,2]
[331651326,1720605061911,-500.0,0.00013808,2]
[331651327,1720605061921,-500.0,0.00013808,2]
[331651328,1720605061930,-500.0,0.00013808,2]
[331651329,1720605061940,-1412.68,0.00013808,2]
[331651330,1720605061950,-500.0,0.00013808,2]
[331651331,1720605061960,-999.09,0.00013808,2]
[331651332,1720605061970,-601.04,0.00013808,2]
[331651333,1720605061980,-833.45,0.00013808,2]
[331651334,1720605061989,-741.36,0.00013808,2]
[331651335,1720605062000,-866.04,0.00013808,2]
[331651336,1720605062010,-1547.93,0.00013808,2]
[331651337,1720605062020,-500.0,0.00013808,2]
[331651338,1720605062030,-500.0,0.00013808,2]
[331651339,1720605062040,-500.0,0.00013808,2]
[331651340,1720605062050,-500.0,0.00013808,2]
[331651341,1720605062060,-789.08,0.00013808,2]
[331651342,1720605062069,-500.0,0.00013808,2]
[331651343,1720605062079,-3440.96,0.00013808,2]
[331651344,1720605062089,-500.0,0.00013808,2]
[331651345,1720605062099,-500.0,0.00013808,2]
[331651346,1720605062109,-1543.63,0.00013808,2]
[331651347,1720605062119,-500.0,0.00013808,2]
[331651348,1720605062128,-416.13402035,0.00013808,2]
[331651349,1720605062138,-842.42,0.00013808,2]
[331651350,1720605062148,-916.54,0.00013808,2]
[331651351,1720605062158,-500.0,0.00013808,2]
[331651352,1720605062167,-500.0,0.00013808,2]
[331651353,1720605062177,-604.1049393,0.00013808,2]
[331651354,1720605062187,-500.0,0.00013808,2]
[331651355,1720605062196,-5458.33,0.00013808,2]
[331651356,1720605062206,-557.85,0.00013808,2]
[331651357,1720605062324,-500.0,0.00013808,2]
[331651358,1720605062334,-715.29,0.00013808,2]
[331651359,1720605062343,-815.67,0.00013808,2]
[331651360,1720605062351,-500.0,0.00013808,2]
[331651361,1720605062360,-906.89,0.00013808,2]
[331651362,1720605062369,-345.35233421,0.00013808,2]
[331651363,1720605062378,-999.33,0.00013808,2]
[331651364,1720605062387,-500.0,0.00013808,2]
[331651365,1720605062396,-614.57,0.00013808,2]
[331651366,1720605062405,-1152.64,0.00013808,2]
[331651367,1720605062414,-553.89,0.00013808,2]
[331651368,1720605062426,-772.33,0.00013808,2]
[331651369,1720605062436,-919.61,0.00013808,2]
[331651370,1720605062445,-500.0,0.00013808,2]
[331651371,1720605062455,-500.0,0.00013808,2]
[331651372,1720605062464,-500.0,0.00013808,2]
[331651373,1720605062473,-500.0,0.00013808,2]
[331651374,1720605062484,-500.0,0.00013808,2]
[331651375,1720605062495,-1438.4,0.00013808,2]
[331651376,1720605062505,-500.0,0.00013808,2]
[331651377,1720605062514,-621.39,0.00013808,2]
[331651378,1720605062524,-545.75,0.00013808,2]
[331651379,1720605062534,-658.54,0.00013808,2]
[331651380,1720605062544,-500.0,0.00013808,2]
[331651381,1720605062554,-666.45,0.00013808,2]
[331651382,1720605062563,-500.0,0.00013808,2]
[331651383,1720605062573,-500.0,0.00013808,2]
[331651384,1720605062583,-500.0,0.00013808,2]
[331651385,1720605062593,-500.0,0.00013808,2]
[331651386,1720605062603,-871.11,0.00013808,2]
[331651387,1720605062612,-500.0,0.00013808,2]
[331651388,1720605062622,-2861.5,0.00013808,2]
[331651389,1720605062631,-1111.47,0.00013808,2]
[331651390,1720605062641,-952.72,0.00013808,2]
[331651391,1720605062651,-1042.92,0.00013808,2]
[331651392,1720605062661,-500.0,0.00013808,2]
[331651393,1720605062670,-682.79,0.00013808,2]
[331651394,1720605062679,-1266.97,0.00013808,2]
[331651395,1720605062689,-500.0,0.00013808,2]
[331651396,1720605062698,-500.0,0.00013808,2]
[331651397,1720605062708,-1819.25,0.00013808,2]
[331651398,1720605062718,-557.3,0.00013808,2]
[331651399,1720605062728,-730.77,0.00013808,2]
[331651400,1720605062738,-762.86,0.00013808,2]
[331651401,1720605062748,-500.0,0.00013808,2]
[331651402,1720605062758,-500.0,0.00013808,2]
[331651403,1720605062768,-500.0,0.00013808,2]
[331651404,1720605062777,-1807.11,0.00013808,2]
[331651405,1720605062787,-581.96,0.00013808,2]
[331651406,1720605062796,-500.0,0.00013808,2]
[331651407,1720605062806,-500.0,0.00013808,2]
[331651408,1720605062816,-500.0,0.00013808,2]
[331651409,1720605062825,-500.0,0.00013808,2]
[331651410,1720605062834,-568.64,0.00013808,2]
[331651411,1720605062843,-1159.96,0.00013808,2]
[331651412,1720605062852,-590.51,0.00013808,2]
[331651413,1720605062862,-500.0,0.00013808,2]
[331651414,1720605062871,-500.0,0.00013808,2]
[331651415,1720605062881,-500.0,0.00013808,2]
[331651416,1720605062890,-960.56,0.00013808,2]
[331651417,1720605062900,-245.36050131,0.00013808,2]
[331651418,1720605062909,-582.97,0.00013808,2]
[331651419,1720605062919,-508.22,0.00013808,2]
[331651420,1720605062928,-500.0,0.00013808,2]
[331651421,1720605062938,-1099.97,0.00013808,2]
[331651422,1720605062947,-500.0,0.00013808,2]
[331651423,1720605062956,-524.11,0.00013808,2]
[331651424,1720605062966,-500.0,0.00013808,2]
[331651425,1720605062976,-734.05,0.00013808,2]
[331651426,1720605062985,-1046.15,0.00013808,2]
[331651427,1720605062996,-500.0,0.00013808,2]